bitfinex/quotes_BTCUSD_20240701
["timestamp","ask_amount","ask_price","bid_price","bid_amount"]
[1719851776347,2.31484967,63303.0,63302.0,0.00419708]
[1719851776555,2.32884967,63303.0,63302.0,0.00419708]
[1719851778258,2.64562967,63303.0,63302.0,0.00419708]
[1719851778494,3.62455936,63303.0,63302.0,0.00419708]
[1719851778707,3.67365089,63303.0,63302.0,0.00419708]
[1719851779341,3.65965089,63303.0,63302.0,0.00419708]
[1719851779556,3.50715089,63303.0,63302.0,0.00419708]
[1719851779958,3.47915089,63303.0,63302.0,0.00419708]
[1719851780176,3.49798126,63303.0,63302.0,0.00419708]
[1719851780383,3.67848126,63303.0,63302.0,0.00419708]
[1719851780992,3.69248126,63303.0,63302.0,0.00419708]
[1719851781429,3.05822099,63303.0,63302.0,0.00419708]
[1719851781636,3.26592099,63303.0,63302.0,0.00419708]
[1719851782068,3.41774126,63303.0,63302.0,0.00419708]
[1719851782466,3.26592099,63303.0,63302.0,0.00419708]
[1719851782669,3.41774126,63303.0,63302.0,0.00419708]
[1719851783641,3.40374126,63303.0,63302.0,0.00419708]
[1719851784262,3.41774126,63303.0,63302.0,0.00419708]
[1719851792076,4.29630031,63303.0,63302.0,8e-08]
[1719851792275,4.29630031,63303.0,63301.0,0.009251]
[1719851792276,2.76932237,63302.0,63301.0,0.009251]
[1719851792483,3.21699506,63302.0,63301.0,0.009251]
[1719851792684,3.85480185,63302.0,63301.0,0.009251]
[1719851792897,0.6952055,63291.0,63290.0,0.000924]
[1719851793123,3.33574448,63291.0,63290.0,0.000924]
[1719851793306,3.81999475,63291.0,63290.0,0.000924]
[1719851793524,4.13599475,63291.0,63290.0,0.000924]
[1719851794136,4.14999475,63291.0,63290.0,0.000924]
[1719851794515,4.16399475,63291.0,63290.0,0.000924]
[1719851796300,4.46265214,63291.0,63290.0,0.000924]
[1719851796936,4.43465214,63291.0,63290.0,0.000924]
[1719851797338,4.46265214,63291.0,63290.0,0.000924]
[1719851797733,4.43465214,63291.0,63290.0,0.000924]
[1719851797942,4.44865214,63291.0,63290.0,0.000924]
[1719851798194,4.46265214,63291.0,63290.0,0.000924]
[1719851800504,4.31083187,63291.0,63290.0,0.000924]
[1719851800712,3.44711293,63291.0,63290.0,0.000924]
[1719851801070,2.60175554,63291.0,63290.0,0.081124]
[1719851801287,2.50175554,63291.0,63290.0,0.29450373]
[1719851801518,2.50175554,63291.0,63290.0,0.30411278]
[1719851801519,0.98625554,63291.0,63290.0,0.30411278]
[1719851801753,0.50791656,63291.0,63290.0,0.30411278]
[1719851802008,0.80991656,63291.0,63290.0,0.29450373]
[1719851802237,0.80991656,63291.0,63290.0,0.30411278]
[1719851802451,0.82391656,63291.0,63290.0,0.30411278]
[1719851802835,0.82391656,63291.0,63290.0,0.29450373]
[1719851803061,0.80991656,63291.0,63290.0,0.29450373]
[1719851803501,0.92391656,63291.0,63290.0,0.29450373]
[1719851803718,0.27791656,63291.0,63290.0,0.30411278]
[1719851803929,0.26391656,63291.0,63290.0,0.30411278]
[1719851804143,0.26391656,63291.0,63290.0,0.30551278]
[1719851804144,0.00238028,63291.0,63290.0,0.30551278]
[1719851804359,0.0117057,63291.0,63290.0,0.46351478]
[1719851804576,0.157993,63294.0,63293.0,0.15778878]
[1719851804796,0.157993,63294.0,63293.0,0.30458878]
[1719851805007,0.95230198,63294.0,63293.0,0.29497973]
[1719851805397,1.26828698,63294.0,63293.0,0.29497973]
[1719851806205,1.36828698,63294.0,63293.0,0.1468]
[1719851807393,1.36928698,63294.0,63293.0,0.1468]
[1719851807594,1.37428698,63294.0,63293.0,0.1468]
[1719851807934,1.37328698,63294.0,63293.0,0.1468]
[1719851808144,1.37628698,63294.0,63293.0,0.1468]
[1719851808854,1.36828698,63294.0,63293.0,0.1468]
[1719851810126,1.36828698,63294.0,63290.0,0.000924]
[1719851810127,0.158,63291.0,63290.0,0.000924]
[1719851810348,0.95233898,63291.0,63290.0,0.000924]
[1719851810547,1.36833898,63291.0,63290.0,0.30170373]
[1719851810858,1.05233898,63291.0,63290.0,0.31131278]
[1719851811428,1.05233898,63291.0,63290.0,0.153524]
[1719851811633,1.38504469,63291.0,63290.0,0.153524]
[1719851811837,1.38004469,63291.0,63290.0,0.30170373]
[1719851812077,1.38604469,63291.0,63290.0,0.30170373]
[1719851812287,1.38804469,63291.0,63290.0,0.30170373]
[1719851812625,1.38604469,63291.0,63290.0,0.30170373]
[1719851813027,1.38804469,63291.0,63290.0,0.30170373]
[1719851813534,1.38204469,63291.0,63290.0,0.30170373]
[1719851813880,1.38604469,63291.0,63290.0,0.30170373]
[1719851814279,1.38204469,63291.0,63290.0,0.30170373]
[1719851814506,1.38204469,63291.0,63290.0,0.31131278]
[1719851814507,0.17501471,63291.0,63290.0,0.31131278]
[1719851814711,0.01770571,63291.0,63290.0,0.46931478]
[1719851815352,0.01370571,63291.0,63290.0,0.46931478]
[1719851815535,0.01170571,63291.0,63290.0,0.31131278]
[1719851815857,0.001,63291.0,63290.0,0.31211278]
[1719851816151,0.01270482,63291.0,63290.0,0.31211278]
[1719851816289,0.001,63291.0,63290.0,0.31211278]
[1719851816485,0.0127481,63291.0,63290.0,0.31211278]
[1719851817059,0.0187481,63291.0,63290.0,0.47011478]
[1719851817511,0.0187481,63291.0,63290.0,0.81611978]
[1719851817720,0.0187481,63291.0,63290.0,1.13212478]
[1719851817913,0.007,63291.0,63290.0,1.13212478]
[1719851818070,0.001,63291.0,63290.0,1.13212478]
[1719851818311,0.002,63291.0,63290.0,1.13212478]
[1719851820293,0.002,63291.0,63290.0,1.10212478]
[1719851820924,0.002,63291.0,63290.0,1.13212478]
[1719851821136,0.002,63291.0,63290.0,0.78611978]
[1719851821346,0.002,63291.0,63290.0,1.10212478]
[1719851821557,0.002,63291.0,63290.0,1.13212478]
[1719851822613,0.002,63291.0,63290.0,1.10212478]
[1719851823046,0.002,63291.0,63290.0,0.78611978]
[1719851823602,0.002,63291.0,63290.0,1.10212478]
[1719851824257,0.002,63291.0,63290.0,0.47011478]
[1719851824989,0.48779198,63291.0,63290.0,0.31211278]
[1719851825195,0.63833898,63291.0,63290.0,0.31211278]
[1719851825405,0.96613096,63291.0,63290.0,0.000924]
[1719851825629,1.28213096,63291.0,63290.0,0.000924]
[1719851826303,1.28013096,63291.0,63290.0,0.15871278]
[1719851826517,0.16979198,63291.0,63290.0,0.15871278]
[1719851826735,0.48579198,63291.0,63290.0,0.30310373]
[1719851827412,0.80779198,63291.0,63290.0,0.31271278]
[1719851827648,1.29113096,63291.0,63290.0,0.085624]
[1719851827862,1.28513096,63291.0,63290.0,0.24341278]
[1719851828068,1.28013096,63291.0,63290.0,0.24341278]
[1719851828278,1.28013096,63291.0,63290.0,0.23380373]
[1719851828412,1.28013096,63291.0,63290.0,0.085624]
[1719851828626,1.28013096,63291.0,63290.0,0.14910373]
[1719851829053,1.28113096,63291.0,63290.0,0.14910373]
[1719851830562,1.28313096,63291.0,63290.0,0.13910373]
[1719851831002,1.28313096,63291.0,63290.0,0.14871278]
[1719851831627,0.158002,63290.0,63289.0,0.15794178]
[1719851831824,0.474007,63290.0,63289.0,0.15794178]
[1719851832075,0.80177301,63290.0,63289.0,0.15794178]
[1719851832969,0.48576801,63290.0,63289.0,0.15794178]
[1719851834376,0.17076301,63290.0,63289.0,0.15794178]
[1719851834807,0.01276101,63290.0,63289.0,0.24024178]
[1719851834986,0.01276101,63290.0,63289.0,0.78175678]
[1719851835190,0.01276101,63290.0,63289.0,0.46574678]
[1719851835423,0.01276101,63290.0,63289.0,0.49574678]
[1719851835605,0.01276101,63290.0,63289.0,0.81175678]
[1719851835784,0.001,63290.0,63289.0,1.12776678]
[1719851836364,0.001,63290.0,63289.0,0.81175678]
[1719851838024,0.001,63290.0,63289.0,0.78175678]
[1719851838238,0.001,63290.0,63289.0,0.81175678]
[1719851838513,0.001,63290.0,63289.0,0.78175678]
[1719851838676,0.001,63290.0,63289.0,0.81175678]
[1719851841237,0.001,63290.0,63289.0,1.12776678]
[1719851843543,0.001,63290.0,63289.0,1.44377678]
[1719851844145,0.001,63290.0,63289.0,1.12776678]
[1719851844737,0.001,63290.0,63289.0,1.44377678]
[1719851845153,0.001,63290.0,63289.0,1.74377678]
[1719851845782,0.001,63290.0,63289.0,1.44377678]
[1719851846995,0.001,63290.0,63289.0,1.74377678]
[1719851848253,0.001,63290.0,63289.0,1.44377678]
[1719851849293,0.001,63290.0,63289.0,1.74377678]
[1719851852742,0.001,63290.0,63289.0,1.44377678]
[1719851854019,0.001,63290.0,63289.0,1.74377678]
[1719851855641,0.001,63290.0,63289.0,1.44377678]
[1719851856366,0.001,63290.0,63289.0,1.3125735]
[1719851856591,0.001,63290.0,63289.0,1.4593735]
[1719851857828,0.001,63290.0,63289.0,1.5423735]
[1719851859875,0.001,63290.0,63289.0,1.4593735]
[1719851861376,0.001,63290.0,63289.0,1.7593735]
[1719851862716,0.001,63290.0,63289.0,2.0753835]
[1719851863598,0.001,63290.0,63289.0,1.7593735]
[1719851865233,0.001,63290.0,63289.0,1.4593735]
[1719851867007,0.001,63290.0,63289.0,1.7593735]
[1719851869113,0.001,63290.0,63289.0,1.4593735]
[1719851869478,0.001,63290.0,63289.0,1.7753835]
[1719851870271,0.001,63290.0,63289.0,2.0753835]
[1719851870595,0.001,63290.0,63289.0,1.7593735]
[1719851872321,0.001,63290.0,63289.0,2.0753835]
[1719851873415,0.001,63290.0,63289.0,2.23772248]
[1719851874069,0.00084,63291.0,63290.0,1.9004405]
[1719851874236,0.00084,63291.0,63290.0,2.37581048]
[1719851874824,0.00084,63291.0,63290.0,2.37610476]
[1719851876462,0.00184,63291.0,63290.0,2.37910476]
[1719851877277,0.00284,63291.0,63290.0,2.38410476]
[1719851878852,0.00284,63291.0,63290.0,2.22527376]
[1719851879025,0.00284,63291.0,63290.0,1.92527376]
[1719851879567,0.00284,63291.0,63290.0,1.44692978]
[1719851880763,0.00284,63291.0,63290.0,0.31471478]
[1719851880979,0.15384,63291.0,63290.0,0.15671278]
[1719851881423,0.63985671,63291.0,63290.0,0.15671278]
[1719851882544,0.63985671,63291.0,63290.0,0.15371278]
[1719851882749,0.63885671,63291.0,63290.0,0.15371278]
[1719851882975,0.63885671,63291.0,63290.0,0.15171278]
[1719851883187,0.63885671,63291.0,63290.0,0.15571278]
[1719851883621,0.474007,63290.0,63289.0,0.14833273]
[1719851883834,1.10645098,63290.0,63289.0,0.009229]
[1719851884071,1.43842517,63290.0,63289.0,0.009229]
[1719851884287,1.43842517,63290.0,63289.0,0.14833273]
[1719851884929,1.43842517,63290.0,63289.0,0.009229]
[1719851885985,2.49126388,63290.0,63289.0,0.009229]
[1719851886210,2.49126388,63290.0,63289.0,0.010229]
[1719851886211,2.51194911,63290.0,63289.0,0.010229]
[1719851886423,2.483679,63290.0,63289.0,0.010229]
[1719851886623,2.483679,63290.0,63289.0,0.013229]
[1719851886830,2.50436423,63290.0,63289.0,0.009229]
[1719851887147,2.60836423,63290.0,63289.0,0.009229]
[1719851887353,2.61036423,63290.0,63289.0,0.009229]
[1719851887482,2.60836423,63290.0,63289.0,0.009229]
[1719851887681,2.60436423,63290.0,63289.0,0.009229]
[1719851887941,2.60936423,63290.0,63289.0,0.010229]
[1719851888982,2.63836423,63290.0,63289.0,0.010229]
[1719851889926,2.63236423,63290.0,63289.0,0.010229]
[1719851890180,2.62736423,63290.0,63289.0,0.009229]
[1719851890396,2.64136423,63290.0,63289.0,0.009229]
[1719851890603,2.54093826,63290.0,63289.0,0.009229]
[1719851890811,2.52693826,63290.0,63289.0,0.009229]
[1719851892216,2.54093826,63290.0,63289.0,0.009229]
[1719851892418,3.15694326,63290.0,63289.0,0.009229]
[1719851892635,3.36833495,63290.0,63289.0,0.009229]
[1719851892963,3.31927697,63290.0,63289.0,0.009229]
[1719851893585,3.31927697,63290.0,63286.0,0.009229]
[1719851893586,4.05388622,63290.0,63286.0,0.009229]
[1719851893815,1.06255421,63287.0,63286.0,0.009229]
[1719851894022,2.58192792,63287.0,63286.0,0.009229]
[1719851894259,3.09182966,63287.0,63286.0,0.009229]
[1719851894466,3.40784966,63287.0,63286.0,0.009229]
[1719851894684,3.24695339,63287.0,63286.0,0.009229]
[1719851895091,3.13853339,63287.0,63286.0,0.009229]
[1719851895296,2.51650742,63287.0,63286.0,0.009229]
[1719851895507,2.54488017,63287.0,63286.0,0.009229]
[1719851895710,2.49582219,63287.0,63286.0,0.009229]
[1719851896114,2.46859968,63287.0,63286.0,0.009229]
[1719851896541,2.48259968,63287.0,63286.0,0.009229]
[1719851897110,2.49659968,63287.0,63286.0,0.009229]
[1719851898790,2.46191445,63287.0,63286.0,0.009229]
[1719851899116,2.47591445,63287.0,63286.0,0.009229]
[1719851899320,2.46191445,63287.0,63286.0,0.009229]
[1719851899453,2.12289445,63287.0,63286.0,0.009229]
[1719851899673,2.14861145,63287.0,63286.0,0.009229]
[1719851899869,2.40614516,63287.0,63286.0,0.009229]
[1719851900188,2.39214516,63287.0,63286.0,0.009229]
[1719851900383,2.72785039,63287.0,63286.0,0.009229]
[1719851900677,2.21581145,63287.0,63286.0,0.009229]
[1719851900912,2.08071145,63287.0,63286.0,0.009229]
[1719851901139,2.09171145,63287.0,63286.0,0.14833273]
[1719851901789,2.09171145,63287.0,63286.0,0.009229]
[1719851902251,2.07771145,63287.0,63286.0,0.14833273]
[1719851902473,2.08871145,63287.0,63286.0,0.14833273]
[1719851902965,2.06671145,63287.0,63286.0,0.14833273]
[1719851903449,1.76969145,63287.0,63286.0,0.15794178]
[1719851903853,1.69737445,63287.0,63286.0,0.15794178]
[1719851904060,1.70537445,63287.0,63286.0,0.15794178]
[1719851904257,1.69537445,63287.0,63286.0,0.15794178]
[1719851904564,1.68737445,63287.0,63286.0,0.15794178]
[1719851904791,1.69037445,63287.0,63286.0,0.15794178]
[1719851905669,1.69037445,63287.0,63286.0,0.14833273]
[1719851906061,1.68737445,63287.0,63286.0,0.15794178]
[1719851906424,1.69937445,63287.0,63286.0,0.15794178]
[1719851906630,1.69637445,63287.0,63286.0,0.15794178]
[1719851906832,1.69837445,63287.0,63286.0,0.15794178]
[1719851907068,1.68937445,63287.0,63286.0,0.15794178]
[1719851907306,1.69337445,63287.0,63286.0,0.15794178]
[1719851907720,1.69337445,63287.0,63286.0,0.14833273]
[1719851907923,2.22382634,63287.0,63286.0,0.14833273]
[1719851908131,2.15829445,63287.0,63286.0,0.14833273]
[1719851908783,2.15829445,63287.0,63286.0,0.009229]
[1719851909444,2.15829445,63287.0,63286.0,0.14833273]
[1719851909669,2.15829445,63287.0,63286.0,0.009229]
[1719851909875,2.24139445,63287.0,63286.0,0.009229]
[1719851910083,2.74043339,63287.0,63286.0,0.009229]
[1719851910491,3.06343339,63287.0,63286.0,0.009229]
[1719851910695,3.16318581,63287.0,63286.0,0.009229]
[1719851911105,2.86318581,63287.0,63286.0,0.009229]
[1719851911736,2.85918581,63287.0,63286.0,0.009229]
[1719851911951,2.77608581,63287.0,63286.0,0.009229]
[1719851912204,0.00084,63345.0,63286.0,0.25896798]
[1719851912416,0.2715,63344.0,63337.0,0.2077]
[1719851912641,0.2715,63344.0,63325.0,0.07934304]
[1719851912642,0.491,63344.0,63340.0,0.00931477]
[1719851912857,0.491,63344.0,63331.0,0.46499428]
[1719851912858,0.3555,63343.0,63331.0,0.1489]
[1719851913095,0.3555,63343.0,63310.0,0.13910373]
[1719851913096,0.2,63331.0,63310.0,0.13910373]
[1719851913393,0.2,63331.0,63290.0,0.2]
[1719851913394,0.02068523,63314.0,63311.0,0.47591475]
[1719851913609,0.02068523,63311.0,63295.0,0.13910373]
[1719851913833,0.02068523,63311.0,63293.0,0.4855238]
[1719851913834,0.02068523,63312.0,63300.0,0.13910373]
[1719851914052,0.00994325,63310.0,63305.0,0.13910373]
[1719851914268,0.00994325,63310.0,63294.0,0.03]
[1719851914269,0.03062893,63311.0,63300.0,0.13910373]
[1719851914482,0.00994281,63309.0,63296.0,0.13910373]
[1719851914696,0.00994281,63309.0,63289.0,0.47591475]
[1719851914697,0.02068523,63306.0,63294.0,0.13910373]
[1719851914905,0.21764236,63308.0,63294.0,0.13910373]
[1719851915112,0.21764236,63308.0,63289.0,0.47591475]
[1719851915113,0.00994102,63305.0,63297.0,0.13910373]
[1719851915337,0.1,63307.0,63296.0,0.13910373]
[1719851915338,0.00994191,63307.0,63296.0,0.13910373]
[1719851915464,0.00994057,63304.0,63294.0,0.13910373]
[1719851915685,0.16233898,63305.0,63294.0,0.13910373]
[1719851915886,0.00994013,63303.0,63296.0,0.13910373]
[1719851916099,0.02068523,63302.0,63290.0,0.13910373]
[1719851916315,0.16233898,63301.0,63290.0,0.13910373]
[1719851916558,0.60562402,63300.0,63290.0,0.13910373]
[1719851916765,0.16233898,63299.0,63290.0,0.13910373]
[1719851916969,0.00993815,63298.0,63290.0,0.13910373]
[1719851917388,0.00993815,63298.0,63287.0,0.0666]
[1719851917593,0.00993815,63298.0,63289.0,0.13910373]
[1719851917948,0.00993815,63298.0,63290.0,0.13910373]
[1719851918106,0.01393815,63298.0,63287.0,0.0666]
[1719851918304,0.00993815,63298.0,63293.0,0.13910373]
[1719851918537,0.00993815,63298.0,63297.0,0.13910373]
[1719851918709,0.01393815,63298.0,63297.0,0.13910373]
[1719851918912,0.01393815,63298.0,63297.0,0.14871278]
[1719851919139,0.01393815,63298.0,63297.0,0.13910373]
[1719851919538,0.01393815,63298.0,63297.0,0.14871278]
[1719851920200,0.7407,63312.0,63297.0,0.14871278]
[1719851920201,0.158831,63337.0,63310.0,0.13910373]
[1719851920364,0.00084,63345.0,63316.0,0.23728004]
[1719851920561,0.00084,63345.0,63323.0,0.315837]
[1719851920787,0.57526835,63344.0,63333.0,0.07934304]
[1719851921008,0.46759005,63343.0,63332.0,0.13910373]
[1719851921340,0.16233898,63342.0,63332.0,0.13910373]
[1719851921552,0.16233898,63342.0,63333.0,0.13910373]
[1719851921766,0.46759005,63343.0,63342.0,0.14871278]
[1719851921971,0.46759005,63343.0,63342.0,0.13910373]
[1719851922840,0.46759005,63343.0,63340.0,0.13910373]
[1719851923059,0.16733898,63342.0,63330.0,0.13910373]
[1719851923280,0.16733898,63342.0,63323.0,0.13910373]
[1719851923281,0.02068523,63338.0,63323.0,0.13910373]
[1719851923531,0.0682,63341.0,63323.0,0.13910373]
[1719851923532,0.02068523,63334.0,63325.0,0.13910373]
[1719851923742,0.16233898,63334.0,63328.0,0.13910373]
[1719851923964,0.16233898,63334.0,63326.0,0.13910373]
[1719851924147,0.16233898,63334.0,63328.0,0.13910373]
[1719851924347,0.16233898,63334.0,63329.0,0.13910373]
[1719851924519,0.16233898,63334.0,63327.0,0.13910373]
[1719851924699,0.16233898,63334.0,63329.0,0.13910373]
[1719851925319,0.16233898,63334.0,63327.0,0.13910373]
[1719851925516,0.17033898,63334.0,63325.0,0.13910373]
[1719851925892,0.17033898,63334.0,63319.0,0.38606]
[1719851925893,0.02068523,63331.0,63322.0,0.13910373]
[1719851926088,0.73760733,63330.0,63321.0,0.13910373]
[1719851926511,0.73760733,63330.0,63319.0,0.13910373]
[1719851926682,0.73760733,63330.0,63320.0,0.13910373]
[1719851926881,0.73760733,63330.0,63321.0,0.13910373]
[1719851928676,0.73960733,63330.0,63321.0,0.13910373]
[1719851929119,0.73760733,63330.0,63321.0,0.13910373]
[1719851929511,0.57526835,63330.0,63329.0,0.13910373]
[1719851929894,0.57526835,63330.0,63329.0,0.14871278]
[1719851930611,0.57726835,63330.0,63329.0,0.14871278]
[1719851931050,0.57526835,63330.0,63329.0,0.62242878]
[1719851931619,0.57626835,63330.0,63329.0,0.62242878]
[1719851932221,0.57526835,63330.0,63329.0,0.62242878]
[1719851932646,0.57626835,63330.0,63329.0,0.62242878]
[1719851933146,0.57726835,63330.0,63329.0,0.62442878]
[1719851933764,0.57626835,63330.0,63329.0,0.62442878]
[1719851934193,0.57726835,63330.0,63329.0,0.62442878]
[1719851934537,0.57626835,63330.0,63329.0,0.62442878]
[1719851934953,0.57726835,63330.0,63329.0,0.62442878]
[1719851935163,0.57626835,63330.0,63329.0,0.62242878]
[1719851935584,0.57626835,63330.0,63329.0,0.62442878]
[1719851935999,0.57626835,63330.0,63329.0,0.62242878]
[1719851936206,0.57726835,63330.0,63329.0,0.62442878]
[1719851936614,0.57526835,63330.0,63329.0,0.62242878]
[1719851937066,0.57626835,63330.0,63329.0,0.62242878]
[1719851937289,0.57626835,63330.0,63329.0,1.2099218]
[1719851937693,0.00084,63345.0,63342.0,0.14871278]
[1719851938957,0.00084,63345.0,63342.0,0.30658578]
[1719851939178,0.46959005,63343.0,63342.0,0.30658578]
[1719851939626,0.46959005,63343.0,63342.0,0.62233178]
[1719851941119,0.007,63343.0,63342.0,0.93807778]
[1719851941545,0.007,63343.0,63342.0,0.96807778]
[1719851942124,0.007,63343.0,63342.0,0.93807778]
[1719851942336,0.007,63343.0,63342.0,0.62233178]
[1719851942541,0.005,63343.0,63342.0,0.62233178]
[1719851942666,0.005,63343.0,63342.0,0.93807778]
[1719851942888,0.006,63343.0,63342.0,0.94007778]
[1719851943115,0.00684,63343.0,63342.0,0.94007778]
[1719851943338,0.00184,63343.0,63342.0,0.94007778]
[1719851943552,0.00284,63343.0,63342.0,0.94007778]
[1719851944987,0.00284,63343.0,63342.0,0.97007778]
[1719851947604,0.00284,63343.0,63342.0,0.94007778]
[1719851947906,0.00284,63343.0,63342.0,0.62433178]
[1719851949727,0.00284,63343.0,63342.0,0.94007778]
[1719851950897,0.00284,63343.0,63342.0,0.14110373]
[1719851951548,0.010012,63343.0,63342.0,0.14110373]
[1719851951748,0.00284,63343.0,63342.0,0.14110373]
[1719851951874,0.010012,63343.0,63342.0,0.14110373]
[1719851952075,0.00184,63343.0,63342.0,0.13910373]
[1719851952345,0.009012,63343.0,63342.0,0.13910373]
[1719851952540,0.00184,63343.0,63342.0,0.13910373]
[1719851952719,0.009012,63343.0,63342.0,0.14110373]
[1719851953004,0.00901257,63343.0,63342.0,0.14110373]
[1719851953230,0.17135155,63343.0,63342.0,0.002]
[1719851953630,0.17035155,63343.0,63342.0,0.002]
[1719851954863,0.17035155,63343.0,63342.0,0.14110373]
[1719851955380,0.17035155,63343.0,63342.0,0.002]
[1719851955622,0.16317898,63343.0,63342.0,0.002]
[1719851956254,0.18386421,63343.0,63342.0,0.002]
[1719851956468,1.02002151,63343.0,63342.0,0.002]
[1719851956719,1.24246048,63343.0,63342.0,0.002]
[1719851957133,0.2492,63327.0,63325.0,0.46609888]
[1719851957338,0.18302421,63326.0,63318.0,0.61501848]
[1719851957631,0.16965279,63326.0,63318.0,0.47591475]
[1719851957821,0.16965279,63326.0,63324.0,0.13910373]
[1719851958086,0.00731381,63326.0,63325.0,0.14871278]
[1719851958517,0.00731381,63326.0,63325.0,0.13910373]
[1719851958727,0.00731381,63326.0,63325.0,0.14871278]
[1719851959145,0.01631381,63326.0,63322.0,0.13910373]
[1719851959353,0.02731381,63326.0,63324.0,0.13910373]
[1719851959739,0.01831381,63326.0,63325.0,0.13910373]
[1719851960092,0.02731381,63326.0,63325.0,0.13910373]
[1719851960271,0.02731381,63326.0,63324.0,0.13910373]
[1719851960753,0.01631381,63326.0,63321.0,0.13910373]
[1719851961164,0.01631381,63326.0,63322.0,0.13910373]
[1719851961596,0.22788523,63324.0,63315.0,0.13910373]
[1719851961804,0.02068523,63321.0,63314.0,0.13910373]
[1719851962008,0.16233898,63320.0,63314.0,0.13910373]
[1719851962257,0.16965234,63320.0,63314.0,0.13910373]
[1719851962576,0.16965234,63320.0,63313.0,0.000924]
[1719851962775,0.16965234,63320.0,63314.0,0.13910373]
[1719851962993,0.16965234,63320.0,63318.0,0.13910373]
[1719851963601,0.16965234,63320.0,63316.0,0.13910373]
[1719851963843,0.16965234,63320.0,63318.0,0.13910373]
[1719851964245,0.17365234,63320.0,63318.0,0.13910373]
[1719851964599,0.16965234,63320.0,63318.0,0.13910373]
[1719851965008,0.17365234,63320.0,63318.0,0.13910373]
[1719851965473,0.17465234,63320.0,63319.0,0.13910373]
[1719851965900,0.01231336,63320.0,63318.0,0.13910373]
[1719851966201,0.00831336,63320.0,63318.0,0.13910373]
[1719851966699,0.001,63320.0,63318.0,0.13910373]
[1719851967452,0.005,63320.0,63318.0,0.13910373]
[1719851967651,0.005,63320.0,63317.0,0.00960905]
[1719851967652,0.005,63320.0,63315.0,0.13910373]
[1719851967910,0.005,63320.0,63316.0,0.13910373]
[1719851968057,0.005,63320.0,63318.0,0.13910373]
[1719851968491,0.001,63320.0,63318.0,0.13910373]
[1719851968688,0.004,63320.0,63319.0,0.13910373]
[1719851968917,0.005,63320.0,63318.0,0.13910373]
[1719851969149,0.004,63320.0,63318.0,0.13910373]
[1719851969353,0.02068523,63323.0,63318.0,0.13910373]
[1719851969549,0.16233898,63322.0,63318.0,0.13910373]
[1719851969755,0.1695551,63322.0,63318.0,0.13910373]
[1719851970160,0.001,63320.0,63318.0,0.13910373]
[1719851970366,0.00721513,63319.0,63314.0,0.13910373]
[1719851970580,0.02068523,63317.0,63313.0,0.000924]
[1719851970802,0.16528523,63314.0,63313.0,0.000924]
[1719851971034,0.33478923,63314.0,63313.0,0.00085701]
[1719851971256,0.45778923,63314.0,63313.0,0.00085701]
[1719851972100,0.75778923,63314.0,63313.0,0.00085701]
[1719851972306,0.77178923,63314.0,63313.0,0.00085701]
[1719851972734,0.78478923,63314.0,63313.0,0.00085701]
[1719851974803,0.9456855,63314.0,63313.0,0.00085701]
[1719851975403,0.78478923,63314.0,63313.0,0.00085701]
[1719851976603,1.10801921,63314.0,63313.0,0.00085701]
[1719851976809,1.12371921,63314.0,63313.0,0.00085701]
[1719851977020,2.94153321,63314.0,63313.0,0.00085701]
[1719851977650,2.84942544,63314.0,63313.0,0.00085701]
[1719851978167,2.83642544,63314.0,63313.0,0.00085701]
[1719851978370,2.82242544,63314.0,63313.0,0.00085701]
[1719851978574,2.83642544,63314.0,63313.0,0.00085701]
[1719851979019,2.85042544,63314.0,63313.0,0.00085701]
[1719851979415,1.78625944,63314.0,63313.0,0.00085701]
[1719851979574,1.62392573,63314.0,63313.0,0.00085701]
[1719851983330,1.61676071,63314.0,63313.0,0.00085701]
[1719851984104,1.12870044,63314.0,63313.0,0.00085701]
[1719851984321,1.28959671,63314.0,63313.0,0.00085701]
[1719851985657,0.92870044,63314.0,63313.0,0.00085701]
[1719851986719,0.34160044,63314.0,63313.0,0.00085701]
[1719851987485,0.38421421,63314.0,63313.0,0.00085701]
[1719851987753,0.40489944,63314.0,63313.0,0.00085701]
[1719851987887,0.34160044,63314.0,63313.0,0.00085701]
[1719851988088,0.36460044,63314.0,63313.0,0.00085701]
[1719851991387,0.52693415,63314.0,63313.0,0.00085701]
[1719851991999,0.36460044,63314.0,63313.0,0.00085701]
[1719851994620,0.82549671,63314.0,63313.0,0.00085701]
[1719851995477,0.02068523,63303.0,63298.0,0.11919182]
[1719851995690,0.46089627,63311.0,63301.0,0.47591475]
[1719851995691,1.22588261,63302.0,63301.0,0.47591475]
[1719851995826,1.20519738,63302.0,63298.0,0.25829555]
[1719851998403,1.21019738,63302.0,63298.0,0.25829555]
[1719851998748,1.21019738,63302.0,63298.0,0.11919182]
[1719851999108,1.21719738,63302.0,63298.0,0.11919182]
[1719852000296,0.02068523,63301.0,63298.0,0.11919182]
[1719852001340,1.20519738,63302.0,63298.0,0.11919182]
[1719852001538,0.01,63301.0,63298.0,0.11919182]
[1719852001761,0.03068523,63301.0,63298.0,0.11919182]
[1719852002156,0.01,63301.0,63298.0,0.11919182]
[1719852002352,0.03068523,63301.0,63298.0,0.11919182]
[1719852002578,0.02468523,63301.0,63298.0,0.11919182]
[1719852003602,0.16633898,63301.0,63298.0,0.11919182]
[1719852004592,0.17233898,63301.0,63298.0,0.11919182]
[1719852004792,0.19302421,63301.0,63298.0,0.11919182]
[1719852005472,0.02068523,63299.0,63296.0,0.139]
[1719852005603,0.02068523,63297.0,63294.0,0.1159]
[1719852005984,0.18302421,63299.0,63294.0,0.11261188]
[1719852006871,0.01,63301.0,63294.0,0.11261188]
[1719852006872,0.02068523,63295.0,63294.0,0.11261188]
[1719852007054,0.02068523,63294.0,63286.0,0.009229]
[1719852007231,0.18302421,63293.0,63286.0,0.009229]
[1719852007454,0.02068523,63290.0,63286.0,0.009229]
[1719852007638,0.6660815,63287.0,63286.0,0.009229]
[1719852007847,0.82842048,63287.0,63286.0,0.009229]
[1719852008056,1.07042048,63287.0,63286.0,0.009229]
[1719852008999,0.90952421,63287.0,63286.0,0.009229]
[1719852009229,0.92352421,63287.0,63286.0,0.009229]
[1719852009434,0.93752421,63287.0,63286.0,0.009229]
[1719852009643,1.26075419,63287.0,63286.0,0.009229]
[1719852009862,1.09985792,63287.0,63286.0,0.009229]
[1719852010067,1.26075419,63287.0,63286.0,0.009229]
[1719852010661,1.26075419,63287.0,63286.0,0.00728646]
[1719852011090,0.93752421,63287.0,63286.0,0.00728646]
[1719852011294,1.09842048,63287.0,63286.0,0.00728646]
[1719852012026,0.93752421,63287.0,63286.0,0.00728646]
[1719852012431,0.51852421,63287.0,63286.0,0.00728646]